Workbook

Sheet Sheet1
A1: 2017年海东市事业单位面向社会公开招聘工作人员递补体检人员名单(第三批）
A2: 序号 | B2: 姓名 | C2: 准考证号 | D2: 招考单位 | E2: 职位名称 | F2: 招录人数 | G2: 笔试成绩 | H2: 笔试成绩加权（70%） | I2: 面试成绩 | J2: 面试成绩加权（30%） | K2: 总成绩 | L2: 名次 | M2: 备注
A3: 1 | B3: 曾倩 | C3: 316321170809 | D3: 乐都区住房和规划建设局 | E3: 21101031-乐都区城乡建设信息服务中心项目管理[21101031] | F3: 2 | G3: 63.17 | H3: =G3*70% -> 44.22 | I3: 80.00 | J3: =I3*30% -> 24.00 | K3: =H3+J3 -> 68.22 | L3: 4 | M3: 递补体检
A4: 2 | B4: 林金香 | C4: 116321040101 | D4: 乐都区纪律检查委员会 | E4: 21101037-乐都区纪委监察局举报中心文秘[21101037] | F4: 6 | G4: 54.50 | H4: 38.15 | I4: 82.80 | J4: 24.84 | K4: =H4+J4 -> 62.99 | L4: 9 | M4: 递补体检
A5: 3 | B5: 曹志茂 | C5: 216321083526 | D5: 平安区交通运输局 | E5: 21102015-平安区交通会计核算中心会计[21102015] | F5: 3 | G5: 49.50 | H5: =G5*0.7 -> 34.65 | I5: 85.2 | J5: =I5*0.3 -> 25.56 | K5: =G5*0.7+I5*0.3 -> 60.21 | L5: 4 | M5: 递补体检
A6: 4 | B6: 任成安 | C6: 116321014206 | D6: 互助县林业局 | E6: 21103014-互助县北山林场文秘[21103014] | F6: 1 | G6: 49.00 | H6: 34.30 | I6: 76.2 | J6: 22.86 | K6: =G6*0.7+I6*0.3 -> 57.16 | L6: 2 | M6: 递补体检
A7: 5 | B7: 袁青 | C7: 216321083905 | D7: 化隆县纪律检查委员会 | E7: 21105047-化隆县举报中心文秘(2)[21105047] | F7: 2 | G7: 52.00 | H7: =G7*70% -> 36.40 | I7: 77 | J7: =I7*30% -> 23.10 | K7: =G7*0.7+I7*0.3 -> 59.50 | L7: 4 | M7: 递补体检
A8: 6 | B8: 赵玲君 | C8: 216321091825 | D8: 化隆县查甫乡人民政府 | E8: 21105094-化隆县查甫乡综合服务中心会计[21105094] | F8: 2 | G8: 45.33 | H8: =G8*70% -> 31.73 | I8: 80.6 | J8: =I8*30% -> 24.18 | K8: =G8*0.7+I8*0.3 -> 55.91 | L8: 4 | M8: 递补体检
A9: 7 | B9: 李泽之 | C9: 116321014626 | D9: 循化县人力资源和社会保障局 | E9: 21106020-循化县社会保险服务局管理人员(2)[21106020] | F9: 4 | G9: 62.00 | H9: =G9*0.7 -> 43.40 | I9: 85.6 | J9: =I9*0.3 -> 25.68 | K9: =G9*0.7+I9*0.3 -> 69.08 | L9: 6 | M9: 递补体检
A10: 8 | B10: 周晓宏 | C10: 116321052219 | D10: 循化县白庄镇人民政府 | E10: 21106021-循化县白庄镇农业综合服务中心、社会事业发展服务中心管理人员[21106021] | F10: 5 | G10: 58.83 | H10: =G10*0.7 -> 41.18 | I10: 80.4 | J10: =I10*0.3 -> 24.12 | K10: =G10*0.7+I10*0.3 -> 65.30 | L10: 6 | M10: 递补体检
